bitfinex-derivatives/quotes_ETHF0:USTF0_20250626
["timestamp","ask_amount","ask_price","bid_price","bid_amount"]
[1750909868798,1.21019637,2485.2,2485.1,3.9164]
[1750909869599,2.01451637,2485.2,2484.9,3.2078]
[1750909869902,2.01454637,2485.1,2484.9,3.2078]
[1750909870098,0.80443,2484.9,2484.7,2.55895174]
[1750909870301,1.21019637,2484.8,2484.7,3.2078]
[1750909870497,1.21019637,2484.8,2484.7,5.76675174]
[1750909870701,2.01458637,2485.0,2484.7,7.08775174]
[1750909871000,1.21019637,2484.9,2484.8,1.321]
[1750909871501,1.21019637,2485.0,2484.8,1.321]
[1750909871902,1.21019637,2484.9,2484.8,2.12544]
[1750909872104,4.01204,2485.5,2485.0,0.80436]
[1750909872300,1.21040764,2485.4,2485.1,8.60000174]
[1750909872496,2.01468764,2485.3,2485.2,2.0405]
[1750909872804,1.21040764,2485.3,2485.2,2.0405]
[1750909873398,1.21040764,2485.3,2485.2,5.40377174]
[1750909873799,1.21040764,2485.3,2485.2,10.40377174]
[1750909874002,0.80414,2485.8,2485.4,0.80425]
[1750909874208,3.8695,2486.2,2485.5,10.39725174]
[1750909874403,0.80407,2486.0,2485.7,5.76675174]
[1750909874803,0.80409,2485.9,2485.7,5.76675174]
[1750909875004,0.80408,2486.0,2485.7,5.76675174]
[1750909875211,0.80408,2486.0,2485.7,7.11405174]
[1750909875402,0.80408,2486.0,2485.8,1.3473]
[1750909875802,0.80409,2485.9,2485.8,1.3473]
[1750909876108,0.80409,2485.9,2485.7,6.48905174]
[1750909876109,0.80409,2485.9,2485.7,7.2123]
[1750909876302,0.80412,2485.8,2485.7,0.7223]
[1750909878504,0.80412,2485.8,2485.7,0.0553107]
[1750909880812,0.80411,2485.9,2485.7,0.0553107]
[1750909881013,0.80409,2486.0,2485.7,0.0553107]
[1750909881210,0.80409,2486.0,2485.7,3.2631107]
[1750909881411,0.80409,2486.0,2485.7,0.0553107]
[1750909881612,0.80409,2486.0,2485.8,0.0553107]
[1750909881812,0.80405,2486.1,2485.8,0.0553107]
[1750909882013,0.80406,2486.0,2485.8,0.0553107]
[1750909882418,5.263,2486.2,2485.8,0.0553107]
[1750909882614,0.7487493,2486.0,2485.7,3.2078]
[1750909882914,0.80405,2486.1,2485.7,4.5483]
[1750909883113,0.80406,2486.0,2485.8,2.6737]
[1750909883718,0.80404,2486.1,2485.8,2.6737]
[1750909883912,4.0118,2486.2,2485.8,3.47781]
[1750909884108,0.804,2486.2,2485.8,2.6737]
[1750909884309,0.804,2486.2,2485.8,3.47782]
[1750909884513,0.804,2486.2,2485.8,2.6737]
[1750909884810,0.80404,2486.1,2485.8,2.6737]
[1750909885316,0.80401,2486.2,2485.8,3.47782]
[1750909885711,0.80409,2485.9,2485.8,9.1637]
[1750909886226,0.6947,2486.4,2485.8,9.1637]
[1750909886512,1.20701721,2486.3,2485.8,2.6737]
[1750909886716,0.80406,2486.0,2485.9,6.49]
[1750909887118,0.6947,2486.4,2485.9,6.49]
[1750909887321,0.80401,2486.2,2486.0,1.3595]
[1750909887525,1.20652873,2486.1,2486.0,1.3595]
[1750909888118,2.01055873,2486.1,2486.0,1.3595]
[1750909888419,2.01055873,2486.1,2485.9,6.49]
[1750909888621,0.80403,2486.1,2485.9,6.49]
[1750909889026,0.804,2486.2,2485.9,6.49]
[1750909889216,1.20590663,2486.1,2485.9,6.49]
[1750909889417,0.80398,2486.3,2485.9,8.65008]
[1750909889714,0.80403,2486.1,2485.9,7.846]
[1750909890222,0.80407,2486.0,2485.9,6.49]
[1750909890824,0.80407,2486.0,2485.8,1.3332]
[1750909891022,0.80407,2486.0,2485.8,7.8152]
[1750909891621,0.80409,2485.9,2485.8,1.3332]
[1750909891825,0.80412,2485.8,2485.7,9.6898]
[1750909892124,0.80411,2485.9,2485.7,9.6898]
[1750909893124,2.0568,2486.1,2485.7,9.6898]
[1750909893428,0.8041,2485.9,2485.7,9.6898]
[1750909893927,0.80408,2486.0,2485.7,6.482]
[1750909894927,0.8041,2485.9,2485.7,6.482]
[1750909895726,0.80412,2485.8,2485.7,6.482]
[1750909896230,2.0097299,2485.8,2485.7,6.482]
[1750909896528,0.80418,2485.7,2485.6,6.482]
[1750909896920,0.80415,2485.8,2485.5,7.1568]
[1750909897329,0.80416,2485.7,2485.5,7.1568]
[1750909897514,0.80416,2485.7,2485.5,0.6748]
[1750909897715,0.80416,2485.7,2485.5,7.1568]
[1750909898123,0.80419,2485.6,2485.5,0.6748]
[1750909898721,0.80422,2485.5,2485.3,0.7137]
[1750909899126,0.80425,2485.4,2485.2,0.6906]
[1750909899728,0.80428,2485.3,2485.2,0.6906]
[1750909900131,0.80427,2485.4,2485.2,0.6906]
[1750909900528,0.80423,2485.5,2485.2,0.6906]
[1750909900735,0.80425,2485.4,2485.2,0.6906]
[1750909901327,2.1392,2485.8,2485.2,3.25400033]
[1750909901527,0.8042,2485.6,2485.2,3.25400033]
[1750909901727,1.20878481,2485.5,2485.2,4.59310033]
[1750909902030,0.8042,2485.6,2485.2,4.59310033]
[1750909902231,2.01062765,2485.5,2485.2,4.59310033]
[1750909902428,0.6995,2485.8,2485.2,11.87941033]
[1750909902620,1.20658221,2485.7,2485.3,1.3391]
[1750909902824,1.20658221,2485.6,2485.3,1.3391]
[1750909903033,1.20658221,2485.5,2485.3,1.3391]
[1750909903234,0.8042,2485.6,2485.3,1.3391]
[1750909903436,1.20640461,2485.5,2485.3,1.3391]
[1750909903730,3.2078,2485.9,2485.4,2.56340033]
[1750909903929,1.2067767,2485.8,2485.6,0.80416]
[1750909904231,3.2078,2485.9,2485.7,6.07965033]
[1750909904436,0.80404,2486.1,2485.8,4.6071]
[1750909904631,1.20784025,2486.0,2485.9,3.96270033]
[1750909905731,1.20784025,2486.0,2485.8,3.2078]
[1750909905935,2.01193025,2485.9,2485.8,3.2078]
[1750909906238,1.20784025,2485.9,2485.8,3.2078]
[1750909906434,1.20784025,2485.9,2485.8,5.41122]
[1750909906830,1.20784025,2485.9,2485.8,4.6071]
[1750909908133,1.20784025,2485.9,2485.8,1.3993]
[1750909908339,2.01193025,2485.9,2485.8,6.482]
[1750909908639,1.20784025,2485.9,2485.8,9.6898]
[1750909908827,1.20784025,2485.9,2485.8,11.0505]
[1750909909033,1.20784025,2485.9,2485.8,11.85462]
[1750909909336,1.20784025,2485.9,2485.8,9.6898]
[1750909909836,1.20784025,2485.9,2485.8,11.1306]
[1750909911832,1.20784025,2485.9,2485.8,11.93472]
[1750909912141,0.80396,2486.3,2485.9,0.80407]
[1750909912332,1.20754505,2486.2,2486.0,2.56340033]
[1750909912533,0.80396,2486.3,2486.0,2.56340033]
[1750909912826,1.2073326,2486.2,2486.0,2.56340033]
[1750909913029,0.80396,2486.3,2486.0,2.56340033]
[1750909913238,1.20738717,2486.2,2486.0,2.56340033]
[1750909913438,0.80396,2486.3,2486.0,2.56340033]
[1750909913637,1.20706453,2486.2,2486.0,2.56340033]
[1750909913842,0.80401,2486.2,2485.9,1.4408]
[1750909914033,0.80397,2486.3,2485.9,2.24489]
[1750909914230,1.20714367,2486.2,2486.0,2.56340033]
[1750909914438,0.80391,2486.5,2486.1,4.01183]
[1750909914637,0.80391,2486.5,2486.2,0.6666]
[1750909914638,1.20704978,2486.4,2486.2,0.6666]
[1750909914838,0.80391,2486.5,2486.2,1.3246]
[1750909915043,1.20704338,2486.4,2486.2,1.3246]
[1750909915241,0.80391,2486.5,2486.2,1.3246]
[1750909915440,1.20679756,2486.4,2486.2,1.3246]
[1750909915637,0.80387,2486.6,2486.2,2.12858]
[1750909915837,3.2078,2486.7,2486.2,2.12858]
[1750909915838,1.20757211,2486.5,2486.3,0.80394]
[1750909916034,1.20757211,2486.4,2486.3,2.13486]
[1750909916339,3.2078,2487.0,2486.7,0.80383]
[1750909916546,4.01155,2487.0,2486.8,2.6456]
[1750909916744,4.01155,2487.0,2486.8,1.3147]
[1750909917043,0.80375,2487.0,2486.8,1.3147]
[1750909917238,0.80372,2487.1,2486.8,1.3147]
[1750909917443,1.2057026,2487.0,2486.8,1.3147]
[1750909917636,0.80374,2487.0,2486.8,1.3147]
[1750909918145,0.80372,2487.1,2486.8,1.3147]
[1750909918341,3.2078,2487.0,2486.5,1.3309]
[1750909918537,0.80377,2486.9,2486.5,0.7052]
[1750909918737,3.59317,2486.9,2486.5,0.7052]
[1750909919242,0.80381,2486.8,2486.5,7.1862]
[1750909919437,2.15101,2486.8,2486.5,7.1862]
[1750909919638,0.80384,2486.7,2486.5,7.1862]
[1750909920347,0.80384,2486.7,2486.5,0.7052]
[1750909920641,0.80384,2486.7,2486.4,5.77120033]
[1750909920642,0.8039,2486.5,2486.2,2.56340033]
[1750909920847,0.80393,2486.4,2486.1,4.6388]
[1750909921440,0.80393,2486.4,2486.2,6.473]
[1750909921638,0.80393,2486.4,2486.1,4.6388]
[1750909922146,0.80393,2486.4,2486.1,11.1118]
[1750909923247,0.6866,2486.5,2486.1,11.1118]
[1750909923447,0.6866,2486.5,2486.2,2.56340033]
[1750909923646,0.80388,2486.6,2486.4,2.56340033]
[1750909924049,3.2078,2486.7,2486.4,2.56340033]
[1750909924251,3.9279,2486.9,2486.6,2.56340033]
[1750909924435,2.00792673,2486.8,2486.6,2.56340033]
[1750909924640,4.73168,2486.9,2486.6,2.56340033]
[1750909924844,2.00798742,2486.8,2486.6,2.56340033]
[1750909925143,0.80381,2486.8,2486.6,2.56340033]
[1750909925544,3.9279,2486.9,2486.6,2.56340033]
[1750909925545,0.80383,2486.7,2486.6,2.56340033]
[1750909925746,0.80383,2486.7,2486.5,3.8699]
[1750909925945,0.80383,2486.7,2486.5,10.3429]
[1750909926140,3.9279,2486.9,2486.5,10.3429]
[1750909926141,0.80382,2486.8,2486.5,10.3429]
[1750909926342,0.8038,2486.8,2486.5,11.7769]
[1750909926544,0.80373,2487.1,2486.6,2.56340033]
[1750909926748,0.80373,2487.1,2486.8,2.56340033]
[1750909926945,0.80374,2487.0,2486.8,2.56340033]
[1750909931755,0.80371,2487.1,2486.8,2.56340033]
[1750909931954,0.80371,2487.1,2487.0,2.56340033]
[1750909932342,3.2078,2487.2,2487.0,9.03640033]
[1750909932955,4.01147,2487.2,2487.1,6.472]
[1750909933459,4.5916,2487.5,2486.9,0.651]
[1750909933655,0.80372,2487.1,2486.9,0.651]
[1750909934652,0.80369,2487.2,2486.9,0.651]
[1750909935456,0.80366,2487.3,2486.9,0.651]
[1750909935660,0.80367,2487.2,2486.9,0.651]
[1750909935858,0.80367,2487.3,2486.9,0.651]
[1750909936057,0.80367,2487.3,2486.9,1.45475]
[1750909936266,0.80367,2487.3,2487.0,2.56340033]
[1750909936955,0.80367,2487.2,2487.0,2.56340033]
[1750909937156,0.80365,2487.3,2487.0,2.56340033]
[1750909937657,0.80361,2487.4,2487.2,2.56340033]
[1750909938061,1.3849,2487.6,2487.2,12.24320033]
[1750909938262,0.80353,2487.7,2487.4,2.56340033]
[1750909938558,0.80353,2487.7,2487.3,3.62672]
[1750909938559,3.2078,2487.8,2487.6,2.56340033]
[1750909939161,4.01118,2488.2,2487.7,0.80351]
[1750909939367,2.00744002,2488.1,2487.8,2.56340033]
[1750909939554,0.80341,2488.1,2487.8,3.97030033]
[1750909939755,0.80342,2488.0,2487.8,3.97030033]
[1750909940155,0.80343,2488.0,2487.8,2.56340033]
[1750909940454,4.01116,2488.2,2487.8,2.56340033]
[1750909940765,4.01116,2488.2,2487.9,1.9738]
[1750909941065,0.80341,2488.0,2487.9,1.9738]
[1750909941456,0.80339,2488.1,2487.9,1.9738]
[1750909941962,0.80341,2488.0,2487.9,1.9738]
[1750909942163,0.8034,2488.1,2487.9,1.9738]
[1750909942466,0.8034,2488.1,2488.0,6.471]
[1750909942763,0.80338,2488.1,2488.0,6.471]
[1750909942959,0.80336,2488.2,2488.0,7.8879]
[1750909943162,4.5736,2488.5,2488.0,10.45130033]
[1750909943362,2.00549039,2488.4,2488.2,2.56340033]
[1750909943661,4.5974,2488.8,2488.2,5.77120033]
[1750909943861,0.8033,2488.4,2488.3,0.717]
[1750909944061,2.00575941,2488.4,2488.3,0.717]
[1750909945162,1.3956,2488.7,2488.3,0.717]
[1750909945363,1.2019916,2488.6,2488.3,0.717]
[1750909945567,0.80328,2488.4,2488.3,0.717]
[1750909945861,2.00532587,2488.4,2488.3,0.717]
[1750909946258,0.80332,2488.3,2488.0,9.03440033]
[1750909946457,0.8033,2488.4,2488.2,2.56340033]
[1750909946856,0.80332,2488.3,2488.2,2.56340033]
[1750909947158,0.80332,2488.3,2488.2,6.47]
[1750909947958,0.80332,2488.3,2488.2,9.03340033]
[1750909948159,4.5974,2488.8,2488.2,9.03340033]
[1750909948465,0.80322,2488.7,2488.4,2.56340033]
[1750909948963,0.80322,2488.7,2488.5,0.6858]
[1750909949365,0.80322,2488.6,2488.5,0.6858]
[1750909952560,3.2078,2488.8,2488.5,0.6858]
[1750909952764,3.2078,2488.8,2488.5,2.8078]
[1750909952765,0.80322,2488.7,2488.5,2.8078]
[1750909953867,4.01097,2488.8,2488.6,2.56340033]
[1750909954164,3.2078,2488.8,2488.6,2.56340033]
[1750909954365,3.2078,2489.1,2488.6,2.56340033]
[1750909954565,2.00303511,2489.0,2488.9,2.56340033]
[1750909955362,2.00303511,2489.0,2488.9,3.28470033]
[1750909955568,1.19993511,2489.0,2488.9,3.28470033]
[1750909955868,1.19993511,2489.0,2488.9,4.69840033]
[1750909956464,4.01086,2489.1,2488.9,4.69840033]
[1750909956666,3.2078,2489.1,2488.9,4.69840033]
[1750909958773,0.80301,2489.3,2488.9,4.69840033]
[1750909958972,1.19846006,2489.2,2489.1,2.56340033]
[1750909959569,0.80302,2489.3,2489.1,2.56340033]
[1750909959771,0.80302,2489.3,2489.2,6.463]
[1750909959969,0.80297,2489.4,2489.2,6.463]
[1750909960165,0.80297,2489.4,2489.3,0.6702]
[1750909960370,2.0013126,2489.5,2489.3,3.23360033]
[1750909960573,3.2078,2489.6,2489.3,3.23360033]
[1750909960870,1.3267,2489.9,2489.3,3.23360033]
[1750909960871,1.19852692,2489.5,2489.3,2.82199]
[1750909961076,12.1550995,2490.3,2489.5,2.56340033]
[1750909961077,0.80284,2489.8,2489.5,2.56340033]
[1750909961263,4.5319,2490.2,2489.7,2.56340033]
[1750909961469,0.80281,2489.9,2489.7,2.56340033]
[1750909961668,0.80281,2489.9,2489.7,3.23360033]
[1750909961669,1.19844642,2489.8,2489.7,3.23360033]
[1750909961870,2.00127642,2489.8,2489.7,3.23360033]
[1750909962065,2.00127642,2489.8,2489.5,1.3026]
[1750909962066,0.8029,2489.6,2489.5,2.56340033]
[1750909962277,0.80293,2489.5,2489.3,3.23360033]
[1750909962476,0.80293,2489.5,2489.4,6.462]
[1750909962666,3.8747,2490.2,2489.4,10.9724]
[1750909962874,3.8747,2490.2,2489.8,2.56340033]
[1750909962875,1.20420874,2490.1,2489.8,2.56340033]
[1750909963181,2.00699874,2490.0,2489.9,2.7069]
[1750909963778,2.00699874,2490.0,2489.9,1.4043]
[1750909963972,1.20420874,2490.0,2489.9,1.4043]
[1750909964276,1.20420874,2490.0,2489.9,2.7069]
[1750909964680,2.00697874,2490.0,2489.9,0.6839]
[1750909964979,2.00697874,2490.0,2489.9,7.1449]
[1750909964980,1.20420874,2490.0,2489.9,7.1449]
[1750909965569,1.20420874,2490.0,2489.9,13.5048]
[1750909965875,0.80262,2490.5,2489.9,13.5038]
[1750909966068,3.2078,2490.9,2490.4,2.56340033]
[1750909966069,0.80255,2490.7,2490.4,2.56340033]
[1750909966280,0.80252,2490.8,2490.6,2.56340033]
[1750909966773,0.80251,2490.8,2490.6,0.6936]
[1750909966976,0.80254,2490.7,2490.6,0.6936]
[1750909967177,0.80254,2490.7,2490.6,6.46]
[1750909968081,4.01028,2490.9,2490.6,6.46]
[1750909968282,0.80251,2490.8,2490.7,2.56340033]
[1750909968674,0.80256,2490.7,2490.5,2.56340033]
[1750909968874,0.80256,2490.7,2490.6,6.459]
[1750909968875,0.80254,2490.7,2490.6,6.459]
[1750909970378,1.3695,2490.8,2490.5,6.459]
[1750909970680,0.80257,2490.6,2490.5,6.459]
[1750909971273,0.80262,2490.5,2490.4,6.459]
[1750909973683,3.2078,2490.6,2490.3,6.459]
[1750909973875,5.2654,2490.6,2490.3,6.459]
[1750909974072,0.80269,2490.3,2490.1,2.56340033]
[1750909974271,3.8931,2490.6,2490.1,2.56340033]
[1750909974475,0.80264,2490.4,2490.3,2.56340033]
[1750909974677,3.8931,2490.6,2490.2,6.459]
[1750909974678,0.80267,2490.3,2490.2,6.459]
[1750909976190,0.8027,2490.2,2490.0,0.6707]
[1750909976380,3.2078,2490.3,2489.7,2.56340033]
[1750909976574,0.80286,2489.8,2489.7,6.458]
[1750909976877,3.2078,2490.0,2489.4,7.1688]
[1750909976878,5.77120033,2490.0,2489.4,7.1688]
[1750909977081,0.8028,2489.9,2489.8,2.56340033]
[1750909978190,0.80284,2489.8,2489.6,5.77120033]
[1750909978489,1.1937528,2489.7,2489.6,3.2078]
[1750909978782,1.9966128,2489.7,2489.6,3.2078]
[1750909980088,0.8029,2489.6,2489.5,3.23130033]
[1750909980282,1.1937528,2489.6,2489.5,9.68930033]
[1750909980688,1.9966528,2489.6,2489.5,9.68930033]
[1750909980988,1.9966528,2489.6,2489.5,9.69030033]
[1750909981188,1.9966528,2489.6,2489.5,9.68530033]
[1750909981591,1.9966528,2489.6,2489.3,3.2078]
[1750909981882,0.8029,2489.6,2489.5,2.56340033]
[1750909982077,0.80288,2489.7,2489.5,2.56340033]
[1750909982282,1.19664254,2489.6,2489.5,2.56340033]
[1750909982492,4.01059,2490.0,2489.5,6.57413033]
[1750909982690,1.99997029,2489.9,2489.8,2.56340033]
[1750909984479,1.19717029,2489.9,2489.8,2.56340033]
[1750909984686,1.99997029,2489.9,2489.7,0.6852]
[1750909984888,1.19717029,2489.8,2489.7,0.6852]
[1750909985792,2.00000029,2489.8,2489.7,0.6852]
[1750909986479,2.00000029,2489.8,2489.6,9.01740033]
[1750909986686,2.00006029,2489.7,2489.5,10.3407]
[1750909986891,1.19717029,2489.6,2489.5,10.3407]
[1750909987691,1.19717029,2489.9,2489.5,10.3407]
[1750909988292,0.80285,2489.8,2489.5,10.3407]
[1750909988494,1.19717029,2489.7,2489.5,10.3407]
[1750909988996,2.00004029,2489.7,2489.5,10.3407]
[1750909989291,2.00007029,2489.6,2489.5,10.3407]
[1750909989485,2.00007029,2489.6,2489.5,7.1329]
[1750909989681,2.00007029,2489.6,2489.5,0.6789]
[1750909994094,0.8029,2489.6,2489.5,0.6789]
[1750909995999,0.8029,2489.6,2489.1,4.70004]
[1750909996000,0.80302,2489.2,2489.1,0.6892]
[1750909996191,0.80301,2489.3,2489.1,0.6892]
[1750909996392,3.2078,2489.4,2489.2,2.56340033]
[1750909996897,4.01078,2489.4,2489.2,2.56340033]
[1750909997291,0.80299,2489.3,2489.2,2.56340033]
[1750909998091,0.80302,2489.2,2489.0,9.67370033]
[1750909998493,0.80306,2489.1,2489.0,9.67370033]
[1750909998693,0.80304,2489.2,2489.0,9.67370033]
[1750909998894,3.2078,2489.4,2489.0,3.21970033]
[1750909999098,5.77120033,2489.4,2488.9,0.7015]
[1750909999399,0.80315,2488.8,2488.6,2.56340033]
[1750909999595,0.80315,2488.8,2488.6,9.67580033]
[1750910001100,0.80314,2488.9,2488.6,9.67580033]
[1750910001301,3.2078,2489.1,2488.8,2.56340033]
[1750910001496,0.8031,2489.0,2488.8,2.56340033]
[1750910001698,0.80312,2488.9,2488.8,2.56340033]
[1750910002301,0.80319,2488.8,2488.6,9.67580033]
[1750910002500,0.80319,2488.7,2488.6,9.67580033]
[1750910002695,2.0702,2489.0,2488.5,0.6864]
[1750910002696,0.80322,2488.6,2488.5,0.6864]
[1750910002900,0.6527,2488.9,2488.4,9.73160033]
[1750910003099,0.80324,2488.6,2488.4,9.73160033]
[1750910004102,0.80325,2488.5,2488.4,9.73160033]
[1750910004905,0.80324,2488.6,2488.4,9.73160033]
[1750910005101,3.2078,2488.8,2488.4,10.53486033]
[1750910005301,3.2078,2488.8,2488.7,2.56340033]
[1750910005503,0.80311,2489.0,2488.7,2.56340033]
[1750910005700,3.2078,2489.2,2488.7,2.56340033]
[1750910005701,2.00368127,2488.9,2488.8,0.7004]
[1750910006407,0.80312,2488.9,2488.8,0.7004]
[1750910007507,3.2078,2489.2,2488.8,0.7004]
[1750910007706,0.80311,2489.0,2488.8,2.0391]
[1750910008406,3.2078,2489.2,2488.9,2.56340033]
[1750910008604,3.2078,2489.2,2489.1,2.56340033]
[1750910008804,3.2078,2489.2,2489.0,1.3387]
[1750910008805,5.21182466,2489.2,2489.0,2.56340033]
[1750910009005,4.01083,2489.2,2489.0,2.56340033]
[1750910009305,3.2078,2489.2,2489.0,2.56340033]
[1750910009801,3.2078,2489.2,2489.1,1.3387]
[1750910010001,4.40908049,2489.2,2489.1,1.3387]
[1750910010306,3.2078,2489.2,2489.1,3.90210033]
[1750910010611,0.80309,2489.0,2488.9,9.01940033]
[1750910010813,0.80312,2488.9,2488.8,0.7004]
[1750910012411,0.80311,2489.0,2488.8,3.26380033]
[1750910012913,0.672,2489.1,2488.8,3.26380033]
[1750910012914,4.01084,2489.2,2488.8,4.06695033]
[1750910013213,1.2012652,2489.1,2489.0,2.56340033]
[1750910013412,0.80306,2489.1,2489.0,2.56340033]
[1750910013717,4.01084,2489.2,2489.0,2.56340033]
[1750910014213,1.20116801,2489.1,2489.0,2.56340033]
[1750910015315,3.2078,2489.2,2489.0,2.56340033]
[1750910016113,3.2078,2489.2,2489.1,6.452]
[1750910016412,3.2078,2489.2,2489.1,9.01540033]
[1750910017616,0.80307,2489.1,2488.9,2.56340033]
[1750910017804,0.80307,2489.1,2489.0,6.452]
[1750910018011,0.80307,2489.1,2488.9,2.56340033]
[1750910018209,0.80307,2489.1,2489.0,6.452]
[1750910018417,4.01084,2489.2,2489.0,6.452]
[1750910018613,0.80306,2489.1,2488.9,9.01540033]
[1750910019503,3.2078,2489.2,2488.9,9.01540033]
[1750910019712,4.01083,2489.2,2488.9,9.01540033]
[1750910020113,3.2078,2489.2,2488.9,4.79922033]
[1750910020312,3.2078,2489.2,2488.9,11.25122033]
[1750910020910,0.803,2489.3,2488.9,4.79922033]
[1750910021111,0.80298,2489.4,2489.0,0.80309]
[1750910021312,1.2029109,2489.3,2489.0,2.23579]
[1750910021514,0.803,2489.3,2489.0,1.4327]
[1750910021818,0.80297,2489.4,2489.0,2.23579]
[1750910022018,1.20123104,2489.3,2489.0,2.23579]
[1750910022218,1.20123104,2489.2,2489.0,2.23579]
[1750910022518,0.80297,2489.4,2489.0,2.23579]
[1750910022720,1.20142568,2489.3,2489.0,2.23579]
[1750910022917,1.20142568,2489.2,2489.0,2.23579]
[1750910023119,0.80297,2489.4,2489.0,2.23579]
[1750910023316,1.2010514,2489.3,2489.0,1.4327]
[1750910023518,1.2010514,2489.2,2489.0,1.4327]
[1750910023715,0.80297,2489.4,2489.0,1.4327]
[1750910023916,1.20104866,2489.3,2489.0,1.4327]
[1750910024215,1.20104866,2489.2,2489.0,1.4327]
[1750910024520,2.00408866,2489.2,2488.9,9.01540033]
[1750910024717,2.00411866,2489.1,2488.9,9.01540033]
[1750910024913,0.80304,2489.2,2488.9,9.01540033]
[1750910025113,1.20140986,2489.1,2488.9,9.01540033]
[1750910025315,0.80304,2489.2,2488.9,10.42390033]
[1750910025512,1.20163582,2489.1,2488.9,10.42390033]
[1750910025718,0.80304,2489.2,2488.9,10.42390033]
[1750910025913,2.00467438,2489.1,2488.9,10.42390033]
[1750910026217,0.80306,2489.1,2488.9,10.42390033]
[1750910026420,0.80304,2489.2,2488.9,10.42390033]
[1750910026615,1.20132337,2489.1,2488.9,10.42390033]
[1750910026811,0.80304,2489.2,2488.9,10.42390033]
[1750910027018,1.2012732,2489.1,2488.9,10.42390033]
[1750910027217,3.8852,2489.5,2488.9,10.42390033]
[1750910027218,0.80301,2489.3,2488.9,11.22702033]
[1750910027516,1.20133218,2489.2,2489.1,2.56340033]
[1750910027823,2.00435218,2489.2,2489.1,2.56340033]
[1750910028821,2.00435218,2489.2,2489.0,7.7823]
[1750910029123,1.20133218,2489.1,2489.0,7.7823]
[1750910030815,1.20133218,2489.1,2489.0,1.3303]
[1750910031019,1.20133218,2489.1,2489.0,7.7823]
[1750910031320,0.80301,2489.3,2489.0,7.7823]
[1750910031618,1.20125819,2489.2,2489.0,7.7823]
[1750910031814,0.80301,2489.3,2489.0,7.7823]
[1750910032014,1.20129299,2489.2,2489.0,7.7823]
[1750910032218,0.80301,2489.3,2489.0,7.7823]
[1750910032423,2.00432888,2489.2,2489.1,2.56340033]
[1750910034422,1.20129888,2489.2,2489.1,2.56340033]
[1750910034830,2.00431888,2489.2,2489.0,7.7823]
[1750910035032,1.20129888,2489.1,2489.0,6.452]
[1750910035327,2.00436888,2489.1,2489.0,6.452]
[1750910035531,1.20129888,2489.1,2489.0,6.452]
[1750910036932,1.20129888,2489.1,2488.9,9.01540033]
[1750910037832,2.00435888,2489.1,2488.9,9.01540033]
[1750910038033,0.80306,2489.1,2488.9,9.01540033]
[1750910038334,1.20271783,2489.0,2488.9,9.01540033]
[1750910039031,1.20271783,2489.0,2488.9,6.452]
[1750910039235,0.80315,2488.8,2488.6,9.01540033]
[1750910040128,0.80314,2488.9,2488.6,9.01540033]
[1750910040329,0.6503,2489.1,2488.8,2.56340033]
[1750910040528,1.20257051,2489.0,2488.9,0.6772]
[1750910041640,2.00567051,2489.0,2488.7,5.77120033]
[1750910041942,1.20257051,2488.9,2488.8,0.7089]
[1750910042435,1.20257051,2488.9,2488.8,3.60993]
[1750910042737,1.20257051,2489.1,2488.9,0.80312]
[1750910042938,3.2078,2489.2,2489.0,2.56340033]
[1750910043240,1.20259248,2489.1,2489.0,2.56340033]
[1750910043440,1.20259248,2489.1,2489.0,3.99670033]
[1750910044744,2.00565248,2489.1,2489.0,2.56340033]
[1750910045240,2.00565248,2489.1,2488.8,3.93690033]
[1750910045241,0.8031,2489.0,2488.8,3.93690033]
[1750910045441,1.20259248,2488.9,2488.8,3.93690033]
[1750910046335,1.20259248,2489.0,2488.8,3.93690033]
[1750910046541,1.20259248,2488.9,2488.8,3.93690033]
[1750910046841,1.20259248,2489.0,2488.8,3.93690033]
[1750910047431,1.20259248,2489.0,2488.8,4.74005033]
[1750910047632,0.80301,2489.3,2488.9,0.80312]
[1750910047837,1.20429364,2489.2,2489.0,7.08260033]
[1750910048136,1.20429364,2489.1,2489.0,7.08260033]
[1750910050749,1.20429364,2489.1,2488.8,4.74004033]
[1750910051045,1.20429364,2489.0,2488.8,4.74004033]
[1750910051246,1.20429364,2488.9,2488.8,6.13864033]
[1750910054049,1.20429364,2488.9,2488.6,3.36660033]
[1750910054252,0.8031,2489.0,2488.8,0.6713]
[1750910054441,1.20371531,2488.9,2488.8,0.6713]
[1750910054939,1.20371531,2488.9,2488.8,3.23470033]
[1750910055537,2.00683531,2488.9,2488.8,0.6713]
[1750910056342,0.80316,2488.8,2488.5,1.379]
[1750910056543,1.20371531,2488.7,2488.6,6.445]
[1750910056948,2.00690531,2488.7,2488.6,6.445]
[1750910057248,2.00690531,2488.7,2488.5,0.6713]
[1750910057548,0.80319,2488.7,2488.5,0.6713]
[1750910058249,0.80317,2488.8,2488.5,0.6713]
[1750910058441,1.20312296,2488.7,2488.5,0.6713]
[1750910058642,1.4021,2488.8,2488.6,2.56340033]
[1750910058838,1.20311191,2488.7,2488.6,2.56340033]
[1750910059345,4.01085,2489.2,2488.7,0.80317]
[1750910059542,1.20311556,2489.1,2488.8,9.00840033]
[1750910059744,1.20311556,2489.0,2488.8,11.21355033]
[1750910059941,3.2078,2489.2,2488.9,0.7062]
[1750910060141,1.20328875,2489.1,2488.9,1.50931]
[1750910060347,3.2078,2489.2,2489.0,2.56340033]
[1750910060553,1.20333945,2489.1,2489.0,2.56340033]
[1750910064054,1.20333945,2489.1,2488.9,2.7924]
[1750910064249,1.20333945,2489.0,2488.9,2.7924]
[1750910065149,1.20333945,2489.0,2488.9,3.59552]
[1750910065554,4.01074,2489.5,2489.1,0.80305]
[1750910065750,1.20317597,2489.4,2489.2,2.56340033]
[1750910065950,1.20317597,2489.3,2489.2,2.56340033]
[1750910066149,2.00617597,2489.3,2489.0,3.89370033]
[1750910066443,2.00621597,2489.2,2488.9,1.3904]
[1750910066645,1.20317597,2489.1,2488.9,1.3904]
[1750910067357,1.20317597,2489.1,2489.0,2.56340033]